fUST/lending_fUST_20260115
["ID","MTS","AMOUNT","RATE_DAILY","PERIOD"]
[401996329,1768451442051,-649.149683,0.00021918,2]
[401996330,1768451442060,-151.0,0.00021918,2]
[401996331,1768451442069,-151.0,0.00021918,2]
[401996332,1768451442078,-202.377532,0.00021918,2]
[401996333,1768451442087,-202.377532,0.00021918,2]
[401996334,1768451442096,-202.377532,0.00021918,2]
[401996335,1768451442105,-202.377532,0.00021918,2]
[401996336,1768451442114,-151.0,0.00021918,2]
[401996337,1768451442123,-151.0,0.00021918,2]
[401996338,1768451442132,-151.0,0.00021918,2]
[401996339,1768451442141,-257.034056,0.00021918,2]
[401996340,1768451442150,-151.112222,0.00021918,2]
[401996341,1768451442160,-239.00022,0.00021918,2]
[401996342,1768451442169,-151.0,0.00021918,2]
[401996343,1768451442178,-151.0,0.00021918,2]
[401996344,1768451442187,-151.0,0.00021918,2]
[401996345,1768451442196,-151.0,0.00021918,2]
[401996346,1768451442205,-151.0,0.00021918,2]
[401996347,1768451442215,-151.0,0.00021918,2]
[401996348,1768451442224,-219.878888,0.00021918,2]
[401996349,1768451442233,-151.0,0.00021918,2]
[401996350,1768451442242,-251.881792,0.00021918,30]
[401996351,1768451442251,-396.791752,0.00021918,30]
[401996352,1768451442260,-151.0,0.00021918,2]
[401996353,1768451442270,-528.23875931,0.00021998,2]
[401996355,1768451442279,-500.0,0.00022,2]
[401996356,1768451442288,-2144.6,0.00022,7]
[401996357,1768451442297,-542.42046568,0.00022,20]
[401996358,1768451442306,-279.868659,0.00022047,30]
[401996360,1768451442317,-346.89225561,0.00022055,6]
[401996362,1768451442326,-816.26520819,0.00022069,15]
[401996363,1768451442334,-762.5202788,0.00022105,2]
[401996365,1768451442344,-204373.72935587,0.00022162,2]
[401996367,1768451442354,-151.0,0.00022162,2]
[401996369,1768451442363,-515.276658,0.00022162,2]
[401996371,1768451442372,-515.276658,0.00022162,2]
[401996374,1768451442381,-515.276658,0.00022162,2]
[401996376,1768451442390,-515.276658,0.00022162,2]
[401996377,1768451442399,-151.0,0.00022162,2]
[401996378,1768451442408,-151.0,0.00022162,2]
[401996379,1768451442418,-155.04544,0.00022162,2]
[401996380,1768451442426,-151.0,0.00022162,2]
[401996381,1768451442435,-179.354254,0.00022162,2]
[401996382,1768451442444,-179.354254,0.00022162,2]
[401996383,1768451442453,-179.354254,0.00022162,2]
[401996384,1768451442463,-179.354254,0.00022162,2]
[401996385,1768451442472,-151.0,0.00022162,2]
[401996386,1768451442482,-151.0,0.00022162,2]
[401996387,1768451442491,-151.0,0.00022162,2]
[401996388,1768451442500,-151.0,0.00022162,2]
[401996389,1768451442509,-1424.748661,0.00022162,2]
[401996390,1768451442518,-1424.748661,0.00022162,2]
[401996391,1768451442527,-202.845237,0.00022162,2]
[401996392,1768451442536,-1424.748661,0.00022162,2]
[401996393,1768451442545,-202.845237,0.00022162,2]
[401996394,1768451442554,-1424.748661,0.00022162,2]
[401996395,1768451442563,-202.845237,0.00022162,2]
[401996396,1768451442572,-202.845237,0.00022162,2]
[401996397,1768451442581,-151.0,0.00022162,2]
[401996398,1768451442590,-151.0,0.00022162,2]
[401996399,1768451442599,-151.0,0.00022162,2]
[401996400,1768451442608,-151.0,0.00022162,2]
[401996401,1768451442617,-151.659476,0.00022162,2]
[401996402,1768451442626,-157.043038,0.00022162,2]
[401996403,1768451442635,-153.063948,0.00022162,2]
[401996404,1768451442644,-475.009948,0.00022162,2]
[401996405,1768451442653,-475.009948,0.00022162,2]
[401996406,1768451442662,-475.009948,0.00022162,2]
[401996407,1768451442671,-475.009948,0.00022162,2]
[401996408,1768451442680,-649.149683,0.00022162,2]
[401996409,1768451442689,-649.149683,0.00022162,2]
[401996410,1768451442698,-649.149683,0.00022162,2]
[401996411,1768451442707,-649.149683,0.00022162,2]
[401996412,1768451442716,-151.0,0.00022162,2]
[401996413,1768451442725,-171.590925,0.00022162,2]
[401996414,1768451442734,-202.377532,0.00022162,2]
[401996415,1768451442743,-202.377532,0.00022162,2]
[401996416,1768451442752,-202.377532,0.00022162,2]
[401996417,1768451442761,-202.377532,0.00022162,2]
[401996418,1768451442770,-151.0,0.00022162,2]
[401996419,1768451442779,-151.0,0.00022162,2]
[401996420,1768451442788,-151.0,0.00022162,2]
[401996421,1768451442797,-151.0,0.00022162,2]
[401996422,1768451442806,-151.0,0.00022162,2]
[401996423,1768451442815,-574.12855637,0.000222,2]
[401996424,1768451442824,-258.9860714,0.0002225,2]
[401996425,1768451442833,-5765.31924314,0.00022344,2]
[401996426,1768451442843,-1701.0,0.00022351,2]
[401996427,1768451442854,-505.96568625,0.00022358,2]
[401996428,1768451442863,-2023.86274502,0.00022358,2]
[401996429,1768451442872,-4553.69117629,0.00022358,2]
[401996430,1768451442881,-1578.47092697,0.00022358,2]
[401996431,1768451442891,-2806.17053684,0.00022358,2]
[401996432,1768451442900,-4384.64146381,0.00022358,2]
[401996433,1768451442909,-6313.88370789,0.00022358,2]
[401996434,1768451442919,-498.61197105,0.000224,2]
[401996435,1768451442928,-1994.44788421,0.000224,2]
[401996436,1768451442937,-4483.02023172,0.000224,2]
[401996437,1768451442946,-175.38565855,0.000224,2]
[401996438,1768451442955,-4570.96514807,0.00022411,5]
[401996439,1768451442964,-1701.0,0.00022439,2]
[401996440,1768451442973,-200.0,0.00022466,2]
[401996441,1768451442983,-300.0,0.00022466,2]
[401996442,1768451442992,-1701.0,0.00022471,2]
[401996443,1768451443001,-3245.03,0.000225,14]
[401996444,1768451443010,-161.29,0.000225,7]
[401996445,1768451443019,-21573.4,0.000225,2]
[401996446,1768451443028,-157.48,0.000225,7]
[401996447,1768451443037,-1701.0,0.00022516,2]
[401996448,1768451443046,-1701.0,0.00022559,2]
[401996449,1768451443055,-1701.0,0.00022602,2]
[401996450,1768451443063,-572.8,0.00022611,2]
[401996451,1768451443072,-1701.0,0.00022628,2]
[401996452,1768451443082,-8593.89726908,0.00022632,2]
[401996453,1768451443091,-8087.35552908,0.00022632,2]
[401996454,1768451443100,-1701.0,0.00022638,2]
[401996455,1768451443109,-559.737314,0.000227,30]
[401996456,1768451443118,-160.0,0.00022736,3]
[401996457,1768451443127,-595.37131296,0.00022748,2]
[401996458,1768451443135,-5000.0,0.00022768,2]
[401996459,1768451443144,-166.0,0.0002279,3]
[401996461,1768451443154,-367.44262798,0.0002279,3]
[401996464,1768451443163,-172.0,0.0002279,3]
[401996466,1768451443172,-3000.0,0.000228,2]
[401996468,1768451443181,-2794.938089,0.000228,30]
[401996470,1768451443191,-281.0,0.000228,2]
[401996471,1768451443200,-2144.6,0.000228,7]
[401996473,1768451443211,-250.0,0.000228,10]
[401996475,1768451443221,-669.66606622,0.000228,2]
[401996476,1768451443230,-2067154.4130614,0.000228,2]
[401996480,1768451443277,-1732.35586885,0.000228,2]
[401996481,1768451443354,-701.54263421,0.000224,2]
[401996482,1768451443364,-604.96102196,0.000228,2]
[401996483,1768451443375,-1376.99468657,0.000228,2]
[401996484,1768451443561,-1578.47092697,0.000224,2]
[401996485,1768451443570,-939.48913775,0.000228,2]
[401996487,1768451445870,-4696.89704672,0.00016952,2]
[401996489,1768451445880,-151.0,0.00021918,2]
[401996490,1768451445890,-151.0,0.00021918,2]
[401996491,1768451445900,-151.0,0.00022162,2]
[401996492,1768451445910,-151.0,0.00022162,2]
[401996493,1768451445920,-2806.17053684,0.000224,2]
[401996494,1768451445934,-5233.85481661,0.000228,2]
[401996578,1768452572212,79999.99352,0.00027,120]
[401996580,1768452619981,119999.99028,0.00027,120]
[401996581,1768452631902,-284.15190672,0.00012542,2]
[401996582,1768452631912,-285.0,0.00012542,2]
[401996583,1768452631921,-300.0,0.00012542,2]
[401996584,1768452631931,-1200.0,0.00012542,2]
[401996585,1768452631940,-597.0,0.00012542,2]
[401996586,1768452631949,-300.0,0.00012543,2]
[401996587,1768452631958,-300.0,0.00012543,2]
[401996588,1768452631967,-300.0,0.00012543,2]
[401996589,1768452631977,-300.0,0.00012543,2]
[401996590,1768452631986,-300.0,0.00012543,2]
[401996591,1768452631996,-300.0,0.00012543,2]
[401996592,1768452632006,-300.0,0.00012543,2]
[401996593,1768452632016,-300.0,0.00012543,2]
[401996594,1768452632025,-300.0,0.00012543,2]
[401996595,1768452632035,-300.0,0.00012543,2]
[401996596,1768452632044,-300.0,0.00012543,2]
[401996597,1768452632053,-300.0,0.00012543,2]
[401996598,1768452632062,-300.0,0.00012543,2]
[401996599,1768452632071,-300.0,0.00012543,2]
[401996600,1768452632080,-300.0,0.00012543,2]
[401996601,1768452632089,-220.37492396,0.00012543,2]
[401996602,1768452632099,-161.14886831,0.00013273,2]
[401996603,1768452632108,-500.0,0.00013698,2]
[401996604,1768452632117,-436.72021913,0.00013698,2]
[401996605,1768452632126,-500.0,0.00013699,2]
[401996606,1768452632135,-640.95571878,0.00013699,2]
[401996607,1768452632144,-500.0,0.00013699,2]
[401996608,1768452632153,-500.0,0.00013699,2]
[401996609,1768452632163,-180.0,0.00013761,2]
[401996610,1768452632174,-1000.0,0.00014247,2]
[401996611,1768452632184,-335.29924993,0.00014542,2]
[401996612,1768452632193,-518.34859255,0.00014795,2]
[401996613,1768452632213,-481.65140745,0.00014795,2]
[401996614,1768452632222,-151.48350527,0.000149,2]
[401996615,1768452632231,-281.7869621,0.00016,2]
[401996621,1768452638027,-9718.2130379,0.00016,2]
[401996622,1768452638037,-940.67096228,0.0001642,2]
[401996635,1768452640358,-59.32903772,0.0001642,2]
[401996637,1768452640367,-1332.895,0.00016517,2]
[401996639,1768452640376,-386.44659314,0.00016542,2]
[401996641,1768452640385,-250.0,0.00016571,2]
[401996643,1768452640394,-3130.91060997,0.000175,2]
[401996940,1768452643291,-16869.08939003,0.000175,2]
[401996942,1768452643300,-22000.0,0.000185,2]
[401996944,1768452643309,-437.59393635,0.00018542,2]
[401996946,1768452643318,-1041.66666667,0.00018746,2]
[401996948,1768452643327,-303.10001605,0.000189,2]
[401996950,1768452643336,-541.53713851,0.0001891,2]
[401996952,1768452643345,-500.0,0.0001891,2]
[401996954,1768452643355,-500.0,0.0001891,2]
[401996956,1768452643365,-500.0,0.0001891,2]
[401996958,1768452643374,-40.79364115,0.0001891,2]
[401996960,1768452643386,-459.20635885,0.0001891,2]
[401996962,1768452643395,-160.35007034,0.0001891,2]
[401996964,1768452643404,-500.0,0.0001891,2]
[401996967,1768452643414,-500.0,0.0001891,2]
[401996968,1768452643423,-500.0,0.0001891,2]
[401996970,1768452643432,-500.0,0.0001891,2]
[401996972,1768452643441,-500.0,0.0001891,2]
[401996974,1768452643451,-500.0,0.0001891,2]
[401996977,1768452643460,-500.0,0.0001891,2]
[401996978,1768452643469,-500.0,0.0001891,2]
[401996981,1768452643479,-500.0,0.0001891,2]
[401996982,1768452643489,-500.0,0.0001891,2]
[401996984,1768452643498,-500.0,0.0001891,2]
[401996987,1768452643507,-500.0,0.0001891,2]
[401996988,1768452643517,-500.0,0.0001891,2]
[401996991,1768452643527,-500.0,0.0001891,2]
[401996993,1768452643536,-500.0,0.0001891,2]
[401996995,1768452643546,-500.0,0.0001891,2]
[401996996,1768452643555,-500.0,0.0001891,2]
[401996998,1768452643565,-500.0,0.0001891,2]
[401997000,1768452643574,-105.42914261,0.0001891,2]
[401997003,1768452643586,-371.12484557,0.0001891,2]
[401997332,1768453590856,232.26281318,0.00025907,120]
[401997333,1768453590929,229.25557431,0.00025907,120]
[401997334,1768453677436,1130.17,0.000273,120]
[401997359,1768453838039,-3727.14042397,0.0001584,2]
[401997360,1768453838149,-1272.85957603,0.0001584,2]
[401997361,1768453838159,-1000000.0,0.00015842,2]
[401997362,1768453838168,-212.59934013,0.00015892,2]
[401997363,1768453838178,-166.66666667,0.00015942,2]
[401997364,1768453838187,-651.0,0.00015942,2]
[401997365,1768453838197,-212.59934013,0.00015942,2]
[401997366,1768453838207,-300.0,0.00015991,2]
[401997367,1768453838216,-608.0,0.00015991,2]
[401997368,1768453838225,-65059.58738107,0.00015992,2]
[401997369,1768453838235,-212.59934013,0.00015992,2]
[401997370,1768453838244,-261.80001627,0.00016092,2]
[401997371,1768453838253,-166.66666667,0.00016143,2]
[401997372,1768453838262,-500.0,0.00016242,2]
[401997373,1768453838271,-500.0,0.00016242,2]
[401997374,1768453838280,-500.0,0.00016242,2]
[401997375,1768453838289,-500.0,0.00016242,2]
[401997376,1768453838298,-500.0,0.00016242,2]
[401997377,1768453838307,-500.0,0.00016242,2]
[401997378,1768453838316,-500.0,0.00016242,2]
[401997379,1768453838326,-500.0,0.00016242,2]
[401997380,1768453838335,-500.0,0.00016242,2]
[401997381,1768453838344,-500.0,0.00016242,2]
[401997382,1768453838353,-500.0,0.00016242,2]
[401997383,1768453838363,-566.03500704,0.00016242,2]
[401997384,1768453838372,-500.0,0.00016242,2]
[401997385,1768453838381,-500.0,0.00016242,2]
[401997386,1768453838390,-540.0946419,0.00016242,2]
[401997387,1768453838399,-500.0,0.00016242,2]
[401997388,1768453838408,-500.0,0.00016242,2]
[401997389,1768453838417,-175.703902,0.00016295,2]
[401997390,1768453838426,-890.0573767,0.00016346,2]
[401997391,1768453838436,-500.0,0.00017597,2]
[401997392,1768453838445,-515.08798811,0.00017597,2]
[401997393,1768453838454,-500.0,0.00017597,2]
[401997394,1768453838463,-454.02863622,0.00017597,2]
[401997395,1768453838472,-500.0,0.00017597,2]
[401997396,1768453838482,-23954.1935263,0.00017598,2]
[401997397,1768453838491,-237.68947624,0.00017715,2]
[401997398,1768453838501,-151.3135251,0.00017715,2]
[401997399,1768453838515,-500.0,0.00017715,2]
[401997400,1768453838525,-500.0,0.00017715,2]
[401997401,1768453838535,-300.0,0.00017847,2]
[401997402,1768453838544,-300.0,0.00017847,2]
[401997403,1768453838554,-300.0,0.00017847,2]
[401997404,1768453838564,-300.0,0.00017847,2]
[401997405,1768453838574,-300.0,0.00017847,2]
[401997406,1768453838586,-300.0,0.00017847,2]
[401997407,1768453838595,-300.0,0.00017847,2]
[401997408,1768453838605,-300.0,0.00017847,2]
[401997409,1768453838615,-300.0,0.00017847,2]
[401997410,1768453838625,-300.0,0.00017847,2]
[401997411,1768453838635,-300.0,0.00017847,2]
[401997412,1768453838644,-300.0,0.00017847,2]
[401997413,1768453838653,-300.0,0.00017847,2]
[401997414,1768453838662,-300.0,0.00017847,2]
[401997415,1768453838671,-300.0,0.00017847,2]
[401997416,1768453838680,-600.0,0.00017847,2]
[401997417,1768453838689,-500.0,0.00017852,2]
[401997418,1768453838698,-500.0,0.00017852,2]
[401997419,1768453838707,-250.0,0.00017989,2]
[401997420,1768453838716,-463.12655738,0.00017989,2]
[401997421,1768453838725,-100000.0,0.0001799,2]
[401997422,1768453838734,-308.9240192,0.00018092,2]
[401997423,1768453838743,-151.0,0.000182,2]
[401997424,1768453838752,-150.48803404,0.00018263,2]
[401997425,1768453838761,-418.73,0.000183,2]
[401997426,1768453838771,-151.0,0.000183,2]
[401997427,1768453838780,-151.0,0.000183,2]
[401997428,1768453838789,-150.55313475,0.000184,2]
[401997429,1768453838798,-151.0,0.000184,2]
[401997430,1768453838807,-151.0,0.000185,2]
[401997431,1768453838816,-274.0,0.00018503,2]
[401997432,1768453838825,-151.0,0.000186,2]
[401997433,1768453838835,-151.0,0.000186,2]
[401997434,1768453838843,-326.0,0.00018678,2]
[401997435,1768453838853,-200.0,0.00018705,2]
[401997436,1768453838862,-200.0,0.00018705,2]
[401997437,1768453838871,-1041.66666667,0.00018753,2]
[401997438,1768453838881,-415.0,0.00018842,2]
[401997439,1768453838890,-151.0,0.00018872,2]
[401997440,1768453838899,-250.0,0.00018872,2]
[401997441,1768453838909,-461.67526834,0.00018872,2]
[401997442,1768453838918,-250.0,0.00018872,2]
[401997443,1768453838928,-250.0,0.00018872,2]
[401997444,1768453838937,-151.0,0.00018872,2]
[401997445,1768453838946,-250.0,0.00018872,2]
[401997446,1768453838955,-2030.296672,0.00018872,2]
[401997447,1768453838965,-250.0,0.00018872,2]
[401997448,1768453838974,-151.0,0.00018872,2]
[401997449,1768453838984,-250.0,0.00018872,2]
[401997450,1768453838994,-250.0,0.00018872,2]
[401997451,1768453839003,-151.0,0.00018872,2]
[401997452,1768453839012,-250.0,0.00018872,2]
[401997453,1768453839022,-273.53456012,0.00018872,2]
[401997454,1768453839032,-151.0,0.00018872,2]
[401997455,1768453839041,-250.0,0.00018872,2]
[401997456,1768453839051,-168.3888056,0.00018872,2]
[401997457,1768453839060,-151.0,0.00018872,2]
[401997458,1768453839069,-250.0,0.00018872,2]
[401997459,1768453839078,-174.61919141,0.00018872,2]
[401997460,1768453839088,-151.0,0.00018872,2]
[401997461,1768453839098,-323.29083411,0.00018872,2]
[401997462,1768453839108,-500.0,0.00018872,2]
[401997463,1768453839118,-181.08010149,0.00018872,2]
[401997464,1768453839128,-151.0,0.00018872,2]
[401997465,1768453839138,-250.0,0.00018872,2]
[401997466,1768453839147,-500.0,0.00018872,2]
[401997467,1768453839156,-187.78006525,0.00018872,2]
[401997468,1768453839165,-151.0,0.00018872,2]
[401997469,1768453839174,-250.0,0.00018872,2]
[401997470,1768453839184,-194.72792766,0.00018872,2]
[401997471,1768453839193,-151.0,0.00018872,2]
[401997472,1768453839202,-500.0,0.00018872,2]
[401997473,1768453839211,-250.0,0.00018872,2]
[401997474,1768453839220,-151.0,0.00018872,2]
[401997475,1768453839229,-201.93286099,0.00018872,2]
[401997476,1768453839238,-500.0,0.00018872,2]
[401997477,1768453839247,-250.0,0.00018872,2]
[401997478,1768453839256,-151.0,0.00018872,2]
[401997479,1768453839265,-209.40437684,0.00018872,2]
[401997480,1768453839275,-500.0,0.00018872,2]
[401997481,1768453839284,-326.88557873,0.00018872,2]
[401997482,1768453839293,-151.0,0.00018872,2]
[401997483,1768453839302,-217.15233878,0.00018872,2]
[401997484,1768453839311,-500.0,0.00018872,2]
[401997485,1768453839320,-151.0,0.00018872,2]
[401997486,1768453839328,-225.18697532,0.00018872,2]
[401997487,1768453839337,-151.0,0.00018872,2]
[401997488,1768453839346,-500.0,0.00018872,2]
[401997489,1768453839355,-233.51889341,0.00018872,2]
[401997490,1768453839364,-198.1626915,0.00018872,2]
[401997491,1768453839373,-151.0,0.00018872,2]
[401997492,1768453839382,-500.0,0.00018872,2]
[401997493,1768453839391,-242.15909246,0.00018872,2]
[401997494,1768453839400,-151.0,0.00018872,2]
[401997495,1768453839409,-154.07580999,0.00018872,2]
[401997496,1768453839418,-500.0,0.00018872,2]
[401997497,1768453839427,-151.0,0.00018872,2]
[401997498,1768453839436,-251.11897888,0.00018872,2]
[401997499,1768453839446,-500.0,0.00018872,2]
[401997500,1768453839455,-30000.0,0.00018872,2]
[401997501,1768453839465,-151.0,0.00018872,2]
[401997502,1768453839474,-260.4103811,0.00018872,2]
[401997503,1768453839483,-500.0,0.00018872,2]
[401997504,1768453839492,-2230.315306,0.00018872,2]
[401997505,1768453839501,-151.0,0.00018872,2]
[401997506,1768453839515,-270.0455652,0.00018872,2]
[401997507,1768453839525,-500.0,0.00018872,2]
[401997508,1768453839534,-151.0,0.00018872,2]
[401997509,1768453839542,-280.03725112,0.00018872,2]
[401997510,1768453839553,-500.0,0.00018872,2]
[401997511,1768453839563,-290.39862941,0.00018872,2]
[401997512,1768453839572,-151.0,0.00018872,2]
[401997513,1768453839583,-500.0,0.00018872,2]
[401997514,1768453839591,-301.1433787,0.00018872,2]
[401997515,1768453839600,-241.27325344,0.00018872,2]
[401997516,1768453839609,-500.0,0.00018872,2]
[401997517,1768453839619,-151.0,0.00018872,2]
[401997518,1768453839628,-500.0,0.00018872,2]
[401997519,1768453839636,-151.0,0.00018872,2]
[401997520,1768453839646,-500.0,0.00018872,2]
[401997521,1768453839655,-3756.58464029,0.00019008,2]
[401997522,1768453839664,-648.6,0.00019178,2]
[401997523,1768453839674,-648.6,0.00019178,2]
[401997524,1768453839683,-648.6,0.00019178,2]
[401997525,1768453839692,-648.6,0.00019178,2]
[401997526,1768453839701,-648.6,0.00019178,2]
[401997527,1768453839710,-648.6,0.00019178,2]
[401997528,1768453839719,-648.6,0.00019178,2]
[401997529,1768453839729,-648.6,0.00019178,2]
[401997530,1768453839738,-648.6,0.00019178,2]
[401997531,1768453839748,-648.6,0.00019178,2]
[401997532,1768453839757,-648.6,0.00019178,2]
[401997533,1768453839766,-648.6,0.00019178,2]
[401997534,1768453839775,-648.6,0.00019178,2]
[401997535,1768453839784,-648.6,0.00019178,2]
[401997536,1768453839793,-648.6,0.00019178,2]
[401997537,1768453839803,-648.6,0.00019178,2]
[401997538,1768453839812,-648.6,0.00019178,2]
[401997539,1768453839821,-648.6,0.00019178,2]
[401997540,1768453839831,-648.6,0.00019178,2]
[401997541,1768453839841,-648.6,0.00019178,2]
[401997542,1768453839850,-648.6,0.00019178,2]
[401997543,1768453839859,-648.6,0.00019178,2]
[401997544,1768453839868,-648.6,0.00019178,2]
[401997545,1768453839878,-648.74161084,0.00019178,2]
[401997546,1768453839887,-175.26985022,0.00019178,2]
[401997547,1768453839896,-478.75725327,0.0001942,2]
[401997549,1768453839906,-2681.8732628,0.0001942,2]
[401997551,1768453839915,-168.0966343,0.0001942,2]
[401997553,1768453839924,-720.0,0.00019632,2]
[401997555,1768453839934,-381.9,0.0001968,2]
[401997557,1768453839943,-156.82,0.000197,2]
[401997559,1768453839952,-2398.91,0.000197,2]
[401997561,1768453839961,-160.09,0.000197,2]
[401997563,1768453839970,-15101.38,0.000197,2]
[401997565,1768453839979,-496.47127164,0.00019968,2]
[401997567,1768453839988,-500.0,0.00019973,2]
[401997569,1768453839997,-500.0,0.00019973,2]
[401997571,1768453840007,-500.0,0.00019973,2]
[401997573,1768453840016,-500.0,0.00019973,2]
[401997575,1768453840025,-500.0,0.00019973,2]
[401997577,1768453840035,-500.0,0.00019973,2]
[401997579,1768453840044,-500.0,0.00019973,2]
[401997581,1768453840053,-500.0,0.00019973,2]
[401997583,1768453840063,-500.0,0.00019973,2]
[401997585,1768453840072,-500.0,0.00019973,2]
[401997587,1768453840081,-500.0,0.00019973,2]
[401997589,1768453840090,-500.0,0.00019973,2]
[401997591,1768453840099,-500.0,0.00019973,2]
[401997593,1768453840108,-500.0,0.00019973,2]
[401997595,1768453840117,-500.0,0.00019973,2]
[401997597,1768453840126,-500.0,0.00019973,2]
[401997599,1768453840135,-232.06511504,0.00019973,2]
[401997601,1768453840145,-200181.45649297,0.0002,2]
[401997603,1768453840154,-151.0,0.0002,2]
[401997605,1768453840163,-151.0,0.0002,2]
[401997607,1768453840172,-151.0,0.0002,2]
[401997609,1768453840182,-637.717609,0.0002,2]
[401997611,1768453840191,-637.717609,0.0002,2]
[401997613,1768453840200,-637.717609,0.0002,2]
[401997615,1768453840209,-637.717609,0.0002,2]
[401997617,1768453840218,-3000.0,0.0002006,7]
[401997619,1768453840227,-356.04802213,0.00020092,2]
[401997621,1768453840236,-23954.1935263,0.0002014,2]
[401997623,1768453840245,-514.84070869,0.00020516,2]
[401997625,1768453840254,-381.9,0.00020631,2]
[401997627,1768453840263,-175.703902,0.00020862,2]
[401997629,1768453840273,-11213.45746522,0.00021054,2]
[401997631,1768453840282,-4384.64146381,0.00021054,2]
[401997633,1768453840291,-533.88981491,0.00021064,2]
[401997635,1768453840300,-250.0,0.00021065,2]
[401997637,1768453840309,-1367.0,0.00021141,2]
[401997639,1768453840318,-2147.0,0.00021141,2]
[401997641,1768453840327,-629.0,0.00021141,2]
[401997643,1768453840338,-715.0,0.00021141,2]
[401997645,1768453840347,-198.527,0.00021141,2]
[401997647,1768453840356,-417.0,0.00021141,2]
[401997649,1768453840365,-417.0,0.00021141,2]
[401997651,1768453840374,-3000.0,0.00021156,7]
[401997653,1768453840383,-10774.31914963,0.0002129,2]
[401997655,1768453840393,-2398.91,0.000213,2]
[401997657,1768453840402,-160.09,0.000213,2]
[401997659,1768453840411,-15101.38,0.000213,2]
[401997661,1768453840421,-156.82,0.000214,2]
[401997663,1768453840429,-228.0,0.00021452,4]
[401997665,1768453840439,-381.9,0.00021581,2]
[401997667,1768453840448,-864.0,0.00021595,10]
[401997669,1768453840457,-553.64373807,0.00021612,2]
[401997671,1768453840467,-151.0,0.00021918,2]
[401997673,1768453840476,-309.165995,0.00021918,2]
[401997675,1768453840484,-309.165995,0.00021918,2]
[401997677,1768453840493,-309.165995,0.00021918,2]
[401997679,1768453840503,-309.165995,0.00021918,2]
[401997681,1768453840518,-151.0,0.00021918,2]
[401997683,1768453840527,-151.0,0.00021918,2]
[401997685,1768453840536,-151.0,0.00021918,2]
[401997687,1768453840545,-151.0,0.00021918,2]
[401997689,1768453840555,-151.0,0.00021918,2]
[401997691,1768453840564,-151.0,0.00021918,2]
[401997693,1768453840573,-151.0,0.00021918,2]
[401997695,1768453840582,-151.0,0.00021918,2]
[401997697,1768453840591,-151.0,0.00021918,2]
[401997699,1768453840600,-151.0,0.00021918,2]
[401997701,1768453840609,-151.0,0.00021918,2]
[401997703,1768453840618,-169.142842,0.00021918,2]
[401997705,1768453840627,-854.849197,0.00021918,2]
[401997707,1768453840636,-854.849197,0.00021918,2]
[401997709,1768453840645,-854.849197,0.00021918,2]
[401997711,1768453840654,-854.849197,0.00021918,2]
[401997713,1768453840663,-151.0,0.00021918,2]
[401997715,1768453840672,-151.000001,0.00021918,2]
[401997717,1768453840681,-154.245754,0.00021918,2]
[401997719,1768453840690,-154.245754,0.00021918,2]
[401997721,1768453840699,-154.245754,0.00021918,2]
[401997723,1768453840708,-154.245754,0.00021918,2]
[401997725,1768453840717,-151.0,0.00021918,2]